Cogmind - Beta 9 @@@ ROGUE MODE // 2019.10.27 @ 19:17:22 Player: blerp Result: Destroyed by G-34 Mercenary with Small Laser Performance ------------- Evolutions (1) 500 Regions Visited (3) 600 Robots Destroyed (18) 90 Value Destroyed (205) 205 Prototype IDs (0) 0 Alien Tech Used (0) 0 Bonus (21) 21 TOTAL SCORE: 1416 Bonus ------- Follower Combat Kills 21 Cogmind --------- Core Integrity 0/400 Matter 300/300 Energy 99/100 System Corruption 0% Temperature Cool (6) Location -9/Materials Parts ------- Power (1) Propulsion (2) Utility (4) Large Storage Unit Terrain Scan Processor Improved Targeting Computer Weapon (2) Inventory (10) Light Ion Engine Wheel Heat Sink Small Storage Unit Terrain Scanner Terrain Scanner EM Shotgun EM Shotgun Light Assault Rifle Peak State ------------ Power Light Nuclear Core Propulsion Wheel Compact Wheel Utility Large Storage Unit Terrain Scanner Terrain Scan Processor Improved Targeting Computer Weapon EM Shotgun Light Assault Rifle Inventory Light Ion Engine Wheel Heat Sink Small Storage Unit Terrain Scanner Terrain Scanner EM Shotgun EM Shotgun Light Assault Rifle [Rating: 15] Favorites ----------- Power Light Nuclear Core Engine Light Ion Engine Power Core Light Nuclear Core Propulsion Compact Wheel Wheel Compact Wheel Utility Large Storage Unit Device Terrain Scanner Storage Large Storage Unit Processor Improved Targeting Computer Weapon Assault Rifle Energy Gun EM Pulse Gun Ballistic Gun Assault Rifle Build | -11 -10 -10 -9 ------- Run | Scr Mat Min Mat Slots Evolved 2 | . . . 2 Power . | . . . . Propulsion . | . . . . Utility 2 | . . . 2 Weapon . | . . . . Parts Attached 24 | 6 11 4 3 Power 2 | 1 1 . . Engine 1 | 1 . . . Core 1 | . 1 . . Reactor . | . . . . Propulsion 5 | 2 2 1 . Treads . | . . . . Leg . | . . . . Wheel 5 | 2 2 1 . Hover . | . . . . Flight . | . . . . Utility 8 | 1 3 2 2 Device 4 | . 2 1 1 Storage 2 | 1 1 . . Processor 2 | . . 1 1 Hackware . | . . . . Protection . | . . . . Artifact . | . . . . Weapon 9 | 2 5 1 1 Energy Gun 6 | 1 4 . 1 Energy Cannon . | . . . . Ballistic Gun 3 | 1 1 1 . Ballistic Cannon . | . . . . Launcher . | . . . . Special Weapon . | . . . . Impact Weapon . | . . . . Slashing Weapon . | . . . . Piercing Weapon . | . . . . Special Melee Weapon . | . . . . Unidentified Prototypes . | . . . . Parts Lost 14 | . 4 3 7 Power 2 | . 1 . 1 Propulsion 3 | . . 1 2 Utility 2 | . . 1 1 Weapon 7 | . 3 1 3 Highest Loss Streak 7 | . 3 3 7 Average Slot Usage (%) 97 | . 98 98 93 Engine 4 | . 9 . . Core 8 | . 4 14 9 Wheel 26 | . 27 27 20 Device 10 | . 13 7 10 Storage 13 | . 14 14 11 Processor 5 | . . 5 22 Energy Gun 13 | . 22 7 . Ballistic Gun 12 | . 5 20 19 Naked Turns . | . . . . Heaviest Build 27 | 11 27 27 25 Greatest Support 32 | 26 32 32 26 Greatest Overweight (x) 5 | . 2 1 5 Average Overweight (x) . | . . . . Largest Inventory Capacity 12 | 6 12 10 10 Average Capacity 9 | 4 9 10 10 Most Carried 10 | 4 10 10 10 Average Carried 8 | 1 8 9 7 Final Capacity 10 | . . . 10 Final Carried 9 | . . . 9 Class Distribution -------------------- 100% | Mutant Dominant Class ---------------- Mutant | -10/Materials Mutant | -10/Mines Mutant | -9/Materials Resources | -11 -10 -10 -9 ----------- Run | Scr Mat Min Mat Matter Collected 477 | 187 195 51 44 Remotely . | . . . . Salvage Created 476 | . 366 51 59 Parts 39 | . 27 7 5 Haulers Intercepted 1 | . 1 . . Recyclers Shooed . | . . . . Parts Field Recycled . | . . . . Retrieved Matter . | . . . . Parts Self-Destructed . | . . . . Prevented . | . . . . Kills | -11 -10 -10 -9 ------- Run | Scr Mat Min Mat Combat Hostiles Destroyed 11 | . 8 3 . Guns 11 | . 8 3 . Classes Destroyed 7 | . 6 . 1 Worker 3 | . 2 . 1 Tunneler 1 | . . . 1 Hauler 1 | . 1 . . Recycler 1 | . 1 . . Watcher 1 | . 1 . . Swarmer 9 | . 6 3 . Grunt 2 | . 2 . . Best Kill Streak 3 | . 3 3 2 Combat Bots Only 3 | . 3 3 . Max Kills in Single Turn 1 | . 1 1 1 Gunslinging . | . . . . Exploded . | . . . . Melee . | . . . . Uniques/NPCs Destroyed . | . . . . Combat | -11 -10 -10 -9 -------- Run | Scr Mat Min Mat Damage Taken 1509 | . 485 207 817 Core 638 | . 154 83 401 Absorbed by Shields . | . . . . Core Remaining (%) 52 | 100 . 5 . Volleys Fired 64 | . 45 15 4 Largest 2 | . 2 2 2 Hottest 90 | . 90 85 40 Shots Fired 112 | . 89 16 7 Gun 112 | . 89 16 7 Cannon . | . . . . Launcher . | . . . . Special . | . . . . Kinetic 36 | . 14 15 7 Thermal 17 | . 16 1 . Explosive . | . . . . Electromagnetic 59 | . 59 . . Robot Hit Streak 7 | . 7 3 3 Robot Miss Streak 6 | . 6 3 1 Penetration Max . | . . . . Secondary Targets 2 | . 2 . . Max Gunslinging Chain 1 | . 1 . . Shots Hit Robots 55 | . 42 8 5 Core Hits 25 | . 18 3 4 Critical Hits . | . . . . Critical Kills . | . . . . Critical Parts Destroyed . | . . . . Melee Attacks . | . . . . Impact . | . . . . Slashing . | . . . . Piercing . | . . . . Sneak Attacks . | . . . . Combat Hostiles . | . . . . Follow-up Attacks . | . . . . Damage Inflicted 777 | . 574 126 77 Guns 677 | . 503 126 48 Cannons . | . . . . Explosions 71 | . 71 . . Melee . | . . . . Ramming 29 | . . . 29 Kinetic 229 | . 55 126 48 Thermal 195 | . 195 . . Explosive . | . . . . Electromagnetic 324 | . 324 . . Impact . | . . . . Slashing . | . . . . Piercing . | . . . . Highest Corruption . | . . . . Average Corruption . | . . . . Corruption Purged . | . . . . Overload Shots . | . . . . Overflow Damage . | . . . . Projectiles . | . . . . Explosions . | . . . . Melee . | . . . . Knockbacks . | . . . . Impact . | . . . . Kinetic . | . . . . Secondary . | . . . . Self-Inflicted Damage 14 | . . . 14 Shots . | . . . . Rammed 2 | . . . 2 Targets Rammed 2 | . . . 2 Kicked . | . . . . Crushed . | . . . . Highest Temperature 237 | . 237 30 11 Average Temperature 54 | . 55 17 11 Received Heat Transfer 312 | . 108 . 204 Siege Activations . | . . . . Robots Corrupted . | . . . . Combat Hostiles . | . . . . Parts Fried . | . . . . Impact Corruptions . | . . . . Robots Melted . | . . . . Combat Hostiles . | . . . . Parts Melted 1 | . 1 . . Heat Transferred 433 | . 433 . . Parts Sabotaged . | . . . . Parts Stolen . | . . . . Parts Stripped . | . . . . Power Chain Reactions 1 | . 1 . . Missiles Intercepted . | . . . . Alert | -11 -10 -10 -9 ------- Run | Scr Mat Min Mat Peak Influence 121 | . 120 79 121 Average Influence 66 | . 78 50 83 Maximum Alert Level . | . . . . Low Security (%) 100 | . . . . Level 1 . | . . . . Level 2 . | . . . . Level 3 . | . . . . Level 4 . | . . . . Level 5 . | . . . . High Security . | . . . . Max Security . | . . . . Squads Dispatched 1 | . . . 1 Investigation . | . . . . Extermination . | . . . . Reinforcement 1 | . . . 1 Assault . | . . . . Garrison . | . . . . Intercept . | . . . . Construction Impeded . | . . . . Haulers Reinforced . | . . . . Stealth | -11 -10 -10 -9 --------- Run | Scr Mat Min Mat Distress Signals 1 | . . . 1 Communications Jammed . | . . . . Distress Signals . | . . . . Times Spotted 26 | . 11 3 12 Peak Tracking Total 8 | . 3 3 8 Tactical Retreats 3 | . 1 . 2 Traps | -11 -10 -10 -9 ------- Run | Scr Mat Min Mat Traps Triggered . | . . . . Indirectly . | . . . . Trap Hack Attempts . | . . . . Triggered . | . . . . Disarmed . | . . . . Reprogrammed . | . . . . Reused . | . . . . Traps Extracted . | . . . . Installed . | . . . . Triggered . | . . . . Machines | -11 -10 -10 -9 ---------- Run | Scr Mat Min Mat Machines Disabled 2 | . 2 . . Max in Single Turn 2 | . 2 . . Machines Sabotaged . | . . . . Garrisons Compromised . | . . . . Overloaded Fab Kills . | . . . . Fab Network Shutdowns . | . . . . Hacking | -11 -10 -10 -9 --------- Run | Scr Mat Min Mat Machines Accessed 6 | . 4 . 2 Terminals 6 | . 4 . 2 Fabricators . | . . . . Repair Stations . | . . . . Recycling Units . | . . . . Scanalyzers . | . . . . Garrison Access . | . . . . Total Hacks 16 | . 12 . 4 Successful 7 | . 4 . 3 Failed 9 | . 8 . 1 Catastrophic . | . . . . Database Lockouts . | . . . . Manual 14 | . 10 . 4 Terminals 16 | . 12 . 4 Fabricators . | . . . . Repair Stations . | . . . . Recycling Units . | . . . . Scanalyzers . | . . . . Garrison Access . | . . . . Terminal Hacks 1 | . 1 . . Locate Traps 1 | . 1 . . Fabricator Hacks . | . . . . Repair Station Hacks . | . . . . Recycling Unit Hacks . | . . . . Scanalyzer . | . . . . Garrison Access Hacks . | . . . . Unauthorized Hacks 15 | . 8 . 7 Terminals 6 | . 3 . 3 Assimilate 2 | . 2 . . Botnet 2 | . . . 2 Operators 2 | . 1 . 1 Fabricators . | . . . . Repair Stations . | . . . . Recycling Units . | . . . . Scanalyzers . | . . . . Garrison Access . | . . . . Data Cores Recovered . | . . . . Used . | . . . . Hacking Detections 6 | . 4 . 2 Full Trace Events . | . . . . Feedback Events . | . . . . Feedback Blocked . | . . . . Robot Schematics Acquired . | . . . . Robots Built . | . . . . Matter . | . . . . Time . | . . . . Total Robot Build Rating . | . . . . Part Schematics Acquired . | . . . . Parts Built . | . . . . Matter . | . . . . Time . | . . . . Total Part Build Rating . | . . . . Parts Repaired . | . . . . Time . | . . . . Parts Recycled . | . . . . Recycled Matter . | . . . . Retrieved Matter . | . . . . Retrieved Components . | . . . . Parts Scanalyzed . | . . . . Part Schematics Acquired . | . . . . Parts Damaged . | . . . . Bothacking | -11 -10 -10 -9 ------------ Run | Scr Mat Min Mat Used RIF Installer . | . . . . Robots Hacked . | . . . . Non-combat . | . . . . Combat . | . . . . Robot Hacks Applied . | . . . . Relay Couplers Released . | . . . . Robots Rewired . | . . . . Allies Hacked . | . . . . Hacks Repelled . | . . . . Allies | -11 -10 -10 -9 -------- Run | Scr Mat Min Mat Total Allies 4 | . 1 3 . Largest Group 3 | . 1 3 3 Highest-Rated Group 40 | . 10 40 40 Highest-Rated Ally 16 | . 10 16 16 Total Orders 3 | . 1 . 2 GOTO 3 | . 1 . 2 Ally Attacks 7 | . . . 7 Total Damage 70 | . . . 70 Kills 5 | . . . 5 Allies Corrupted . | . . . . Allies Melted . | . . . . Intel | -11 -10 -10 -9 ------- Run | Scr Mat Min Mat Robot Analysis Total . | . . . . Derelict Logs Recovered 1 | . . 1 . Drone Launches . | . . . . Drone Recoveries . | . . . . Exploration | -11 -10 -10 -9 ------------- Run | Scr Mat Min Mat Turns Passed 1341 | 60 627 434 220 Spaces Moved 1104 | 56 469 369 210 Core 11 | 7 . . 4 Treads . | . . . . Legs . | . . . . Wheels 1093 | 49 469 369 206 Hover . | . . . . Flight . | . . . . Fastest Speed 50 | 50 90 90 90 Average Speed 94 | 84 95 95 94 Slowest Speed 300 | 90 110 110 300 Overloaded Moves . | . . . . Propulsion Burnouts . | . . . . Robots Hopped . | . . . . Cave-ins Triggered . | . . . . Exploration Rate (%) 37 | 3 49 75 23 Regions Visited 3 Branch Regions 1 Pre-discovered Areas . | . . . . Known Exits Taken . | . . . . Unknown Exits Taken 3 | 1 1 1 . Scrap Searched . | . . . . Spaces Dug . | . . . . Terrain Destroyed . | . . . . Melee . | . . . . Projectile . | . . . . AOE . | . . . . Actions | -11 -10 -10 -9 --------- Run | Scr Mat Min Mat Total 1282 | 65 557 433 227 Wait 63 | . 13 45 5 Move 1101 | 55 468 368 210 Hop . | . . . . Pick Up 20 | 4 12 1 3 Fast Attach 12 | 6 5 1 . Attach 9 | . 4 2 3 Detach 2 | . 2 . . Swap 3 | . 2 1 . Drop 6 | . 6 . . Fire 64 | . 45 15 4 Melee . | . . . . Ram 2 | . . . 2 Kick . | . . . . Crush . | . . . . Escape Stasis . | . . . . Rewire . | . . . . Trap . | . . . . Miscellaneous . | . . . . Route ------- -11/Scrapyard -10/Materials (discovered 2 exits: *Mat / [*Min]) -10/Mines -9/Materials History --------- Turn | Location | Event 20 | -11/Scrapyard | Discovered new exit (range 16) 61 | -11/Scrapyard | Entered Materials 185 | -10/Materials | Discovered new exit (range 16) 311 | -10/Materials | Build established: Mutant 401 | -10/Materials | Discovered new exit (range 13) 504 | -10/Materials | Core integrity fell below 50% 508 | -10/Materials | Lost 3 parts (1p2w) 688 | -10/Materials | Entered Mines 720 | -10/Mines | Met a Derelict bent on vengeance 926 | -10/Mines | Core integrity fell below 20% 964 | -10/Mines | Assisted by bots powering up and referring to "LRC-V3" 965 | -10/Mines | Lost 3 parts (1n1u1w) 1093 | -10/Mines | Learned Materials terminal intel 1106 | -10/Mines | Discovered new exit (range 5) 1122 | -10/Mines | Entered Materials 1122 | -9/Materials | Accompanied by 3 allies 1122 | -9/Materials | Evolved 2 slots: Utility x2 1123 | -9/Materials | Loaded intel: 12 terminal locations 1328 | -9/Materials | Core integrity fell below 50% 1338 | -9/Materials | Core integrity fell below 20% 1342 | -9/Materials | Destroyed by G-34 Mercenary with Small Laser Last Messages --------------- 01312_ Assault Rifle destroyed. 01312_ K-01 Serf collects debris. 01315_ Lgt. Nuclear Core destroyed. 01315_ Lgt. Assault Rifle destroyed. 01316_ K-01 Serf collects debris. 01321_ EM Shotgun destroyed. 01321_ Slammed into K-01 Serf. 01321_ K-01 Serf destroyed. 01321_ Destabilizing: Core damaged (-20). 01321_ Wheel destroyed. 01322_ Acquired 29 matter. 01323_ G-34 Mercenary destroyed. 01323_ Acquired 15 matter. 01330_ Slammed into T-07 Excavator. 01330_ T-07 Excavator destroyed. 01333_ Com. Wheel destroyed. 01336_ G-34 Mercenary destroyed. 01336_ K-01 Serf collects debris. 01339_ Terrain Scanner destroyed. 01341_ K-01 Serf collects debris. Map ----- +----------------------------------------------------+ | | | | | | | | | | | | | | | | | | | ???????##????????????????????????????????????????? | | ???????#????#???#??????T####?????????????????????? | | ??#?????##??? ????????? #????????????????????? | | ????#??????????????????? #????????????????????? | | #??#??###?# ??????? ???? #????????????????????? | | ?????????#?????? ??? ?? #????????????????????? | | ???#?##?#?? ????????? ? !! #??#?????????????????? | | #######??????????##???" !! #???#????????????????? | | #?#?##########??T k #????????????????????? | | """ ##### #? "? ##?????#?????????????? | | """ # # +??? #??#?#???????????????? | | """ # # #???? #????????????????????? | | # # ##??## #????????????????????? | | + + !/! #????# #????#???????????????? | | "T" # # !!! ###??# #######??????????????? | | """ # # /!! #?#?## + ?????#???????? | | # # #????#@ ######?????????? | | #/##### # ####?# ? ??????? | | ? ?? ?# #############?# s ???????? | | ? ?? ## #??#??## #?# ############?#???????? | | ??????# #? #??## ### #???#?###??????????#?? | | ?"T"?## #?? ? ?# #?#! ##?#????#????????????? | | """??# #? ""? # ###%= ####??####?? ?? ?????? | | ???##?# #? ????# ###*% #?###??##????????#???? | | ????#?# # ?? " # ### #?#?????????"????#??? | | ?#?#??# #?? ???# #?# s ##?#?#???? ??????????? | | ???#??# # ? ### s#################### | | ???#??# ###+######+### gs*%! = | | ??????# "T" [=! | | ??????# Y #################?#?? | | ????#?# t#?##????????????????? | | ???##?## ##+### #??#??????????#?????? | | ?#??#??# # ##### ##?##?#?#?#??????#???? | | ??#???## """ # ##### ###?#??#???????? ????? | | ???????# """ # ##?## #?#?#?#??????"???????? | | ???##??# """ # ##??# ##??##????#??????????? | | ???????# """ # #?### ##???? ??????????????? | | ???#??## """ # [ #???# #? ? ?? ????????????? | | ##???### # ###?# ##? ? ? ???? ??? ????? | | ????#??# ######### #??"?? ??"???????????? | | ?####?## #??#????# ?#?????"?????????????? | +----------------------------------------------------+ Best States ------------- Heat Dissipation 28 Energy Generation 14 Energy Capacity 160 Matter Stores 300 Matter Capacity 300 Sight Range 16 Robot Scan Range 10 Terrain Scan Range 14 Terrain Scan Density 85 Evasion (%) 44 Targeting Accuracy 6 Item Schematics ----------------- None Robot Schematics ------------------ None Fabricated ------------ Nothing Alien Tech Used ----------------- None Achievements -------------- None Challenges ------------ None Game ------ Seed MakeshiftDeliveryPrototype Manual? 0 Play Time 00:26:59 Cumulative 32.2 hours Start 2019.10.27 @ 18:50:35 End 2019.10.27 @ 19:17:22 Sessions 1 Manual Loads 0 Difficulty Rogue Special Mode None Game No. 26 Rogue 26 Adventurer 0 Explorer 0 Win Type - Total 0 Types 0/0/0/0/0/0/0 Lore% 12 Gallery% 26 Achievement% 24 Wizard Run 0 Options --------- ASCII 0 Keyboard 1 Movement Arrows Keybinds 0 Fullscreen 1 Font 16/Terminus Map View 76x50 Tactical HUD 1 Map Filters NONE Filters NONE Steam 1 RUN: a1c17cc6-3212-4acd-92a0-056636fb8240